[Event "Late-Titled-Tuesday-Blitz-March-12-2024"]
[Site "Chess.com"]
[Date "2024.03.12"]
[Round "2"]
[White "Roedor"]
[Black "joksijoksi"]
[Result "1-0"]
[WhiteElo "2286"]
[BlackElo "2591"]
[TimeControl "180+1"]
[EndTime "14:17:55 PDT"]
[Termination "Roedor won by resignation"]

1. c4 {[%clk 0:02:53.3]} 1... c6 {[%clk 0:02:58.6]} 2. d4 {[%clk 0:02:51.1]}
2... d5 {[%clk 0:02:56.1]} 3. Nf3 {[%clk 0:02:51.3]} 3... Nf6 {[%clk 0:02:56.1]}
4. Qb3 {[%clk 0:02:51.2]} 4... g6 {[%clk 0:02:54.7]} 5. Nc3 {[%clk 0:02:47.4]}
5... Bg7 {[%clk 0:02:54.5]} 6. Bg5 {[%clk 0:02:47.4]} 6... dxc4 {[%clk
0:02:53.3]} 7. Qxc4 {[%clk 0:02:47.3]} 7... O-O {[%clk 0:02:53.4]} 8. e3 {[%clk
0:02:46.7]} 8... h6 {[%clk 0:02:49.1]} 9. Bh4 {[%clk 0:02:45.2]} 9... Be6 {[%clk
0:02:49.3]} 10. Qd3 {[%clk 0:02:43.4]} 10... Nbd7 {[%clk 0:02:48.4]} 11. Be2
{[%clk 0:02:40.4]} 11... Nb6 {[%clk 0:02:46.9]} 12. O-O {[%clk 0:02:28.4]} 12...
Bc4 {[%clk 0:02:44.9]} 13. Qd2 {[%clk 0:02:28]} 13... Bxe2 {[%clk 0:02:45.2]}
14. Qxe2 {[%clk 0:02:26.8]} 14... Nbd5 {[%clk 0:02:45.4]} 15. Rfd1 {[%clk
0:02:24.7]} 15... Nxc3 {[%clk 0:02:43.9]} 16. bxc3 {[%clk 0:02:25.6]} 16... Ne4
{[%clk 0:02:44.2]} 17. Rac1 {[%clk 0:02:22.2]} 17... g5 {[%clk 0:02:43.8]} 18.
Bg3 {[%clk 0:02:21.8]} 18... e6 {[%clk 0:02:38.1]} 19. Nd2 {[%clk 0:02:21.1]}
19... Nxg3 {[%clk 0:02:28.6]} 20. hxg3 {[%clk 0:02:22]} 20... f5 {[%clk
0:02:27.9]} 21. Qc4 {[%clk 0:02:16]} 21... Qd5 {[%clk 0:02:25.9]} 22. Qb3 {[%clk
0:02:16.1]} 22... Rf7 {[%clk 0:02:22.2]} 23. c4 {[%clk 0:02:14.1]} 23... Qd8
{[%clk 0:02:20.5]} 24. a4 {[%clk 0:02:12.1]} 24... f4 {[%clk 0:02:17.1]} 25.
exf4 {[%clk 0:02:06.1]} 25... gxf4 {[%clk 0:02:18]} 26. Ne4 {[%clk 0:02:01]}
26... Qf8 {[%clk 0:02:03.6]} 27. c5 {[%clk 0:01:48.4]} 27... Rd8 {[%clk
0:01:48.3]} 28. Qxe6 {[%clk 0:01:37.9]} 28... Re8 {[%clk 0:01:34.5]} 29. Qg6
{[%clk 0:01:08.4]} 29... fxg3 {[%clk 0:01:33.8]} 30. Nxg3 {[%clk 0:01:05]} 30...
Rf6 {[%clk 0:01:23.6]} 31. Qg4 {[%clk 0:01:00.8]} 31... Rf4 {[%clk 0:01:13.4]}
32. Qg6 {[%clk 0:01:00]} 32... Qf7 {[%clk 0:01:06.5]} 33. Qxf7+ {[%clk
0:00:56.5]} 33... Rxf7 {[%clk 0:01:07.4]} 34. d5 {[%clk 0:00:49.4]} 34... cxd5
{[%clk 0:01:02.4]} 35. Rxd5 {[%clk 0:00:50.3]} 35... Rc7 {[%clk 0:00:48]} 36.
Nf5 {[%clk 0:00:45.3]} 36... b6 {[%clk 0:00:42.2]} 37. c6 {[%clk 0:00:43.8]}
37... Rec8 {[%clk 0:00:25.4]} 38. Kh2 {[%clk 0:00:43.7]} 38... Rf8 {[%clk
0:00:17.1]} 39. g4 {[%clk 0:00:36.4]} 39... Kh7 {[%clk 0:00:15.6]} 40. f4 {[%clk
0:00:33.2]} 40... Rfc8 {[%clk 0:00:13.2]} 41. Rd7 {[%clk 0:00:32.4]} 41... Rxd7
{[%clk 0:00:11]} 42. cxd7 {[%clk 0:00:32.5]} 42... Rd8 {[%clk 0:00:11.6]} 43.
Rc7 {[%clk 0:00:24.7]} 43... Bf6 {[%clk 0:00:11.3]} 44. Rxa7 {[%clk 0:00:24.3]}
44... Kg6 {[%clk 0:00:10.9]} 45. Kg3 {[%clk 0:00:23.5]} 45... h5 {[%clk
0:00:11]} 46. Rb7 {[%clk 0:00:22.8]} 46... hxg4 {[%clk 0:00:10.7]} 47. Kxg4
{[%clk 0:00:22.8]} 47... Bc3 {[%clk 0:00:09.2]} 48. Rxb6+ {[%clk 0:00:21.1]}
48... Kf7 {[%clk 0:00:08.9]} 49. Rd6 {[%clk 0:00:16.6]} 49... Bb4 {[%clk
0:00:08.7]} 50. Rd3 {[%clk 0:00:14.6]} 50... Ba5 {[%clk 0:00:09.1]} 51. Nd6+
{[%clk 0:00:13.2]} 51... Ke6 {[%clk 0:00:09.1]} 52. Nb7 {[%clk 0:00:13.7]} 52...
Rxd7 {[%clk 0:00:08.4]} 53. Rxd7 {[%clk 0:00:14]} 53... Kxd7 {[%clk 0:00:09.3]}
54. Nxa5 {[%clk 0:00:14.6]} 1-0

[Event "Late-Titled-Tuesday-Blitz-March-12-2024"]
[Site "Chess.com"]
[Date "2024.03.12"]
[Round "2"]
[White "sjoerd893"]
[Black "2L8IWUN"]
[Result "1-0"]
[WhiteElo "2489"]
[BlackElo "2166"]
[TimeControl "180+1"]
[EndTime "14:17:56 PDT"]
[Termination "sjoerd893 won on time"]

1. e4 {[%clk 0:03:00.9]} 1... e5 {[%clk 0:02:56.9]} 2. Nf3 {[%clk 0:03:01]} 2...
Nc6 {[%clk 0:02:55.5]} 3. Bc4 {[%clk 0:03:01.5]} 3... Bc5 {[%clk 0:02:54.6]} 4.
c3 {[%clk 0:02:59.5]} 4... Nf6 {[%clk 0:02:54.5]} 5. d3 {[%clk 0:02:59.1]} 5...
a6 {[%clk 0:02:52.8]} 6. a4 {[%clk 0:02:58.4]} 6... O-O {[%clk 0:02:48.3]} 7.
Nbd2 {[%clk 0:02:57.1]} 7... d6 {[%clk 0:02:45.9]} 8. Nf1 {[%clk 0:02:53.7]}
8... Be6 {[%clk 0:02:44.6]} 9. Bb3 {[%clk 0:02:50]} 9... Bxb3 {[%clk 0:02:38]}
10. Qxb3 {[%clk 0:02:50.9]} 10... d5 {[%clk 0:02:34.1]} 11. Ng3 {[%clk
0:02:37.3]} 11... dxe4 {[%clk 0:02:19.6]} 12. dxe4 {[%clk 0:02:31.9]} 12... Qd3
{[%clk 0:02:17.4]} 13. Qxb7 {[%clk 0:01:18.5]} 13... Nxe4 {[%clk 0:01:29.4]} 14.
Nxe4 {[%clk 0:00:55.2]} 14... Qxe4+ {[%clk 0:01:30.3]} 15. Kf1 {[%clk
0:00:55.1]} 15... Qc4+ {[%clk 0:00:48]} 16. Kg1 {[%clk 0:00:40.4]} 16... Na5
{[%clk 0:00:35.1]} 17. Nd2 {[%clk 0:00:21.8]} 17... Qe2 {[%clk 0:00:29.9]} 18.
Qf3 {[%clk 0:00:20.6]} 18... Qe1+ {[%clk 0:00:25.1]} 19. Nf1 {[%clk 0:00:20.8]}
19... Nb3 {[%clk 0:00:25.1]} 20. Rb1 {[%clk 0:00:19.7]} 20... Nxc1 {[%clk
0:00:24.3]} 21. h3 {[%clk 0:00:17.7]} 21... Ne2+ {[%clk 0:00:23.9]} 22. Kh2
{[%clk 0:00:17.9]} 22... Qxb1 {[%clk 0:00:22.8]} 23. Qxe2 {[%clk 0:00:18.3]}
23... Rfe8 {[%clk 0:00:20.7]} 24. b4 {[%clk 0:00:18.4]} 24... Bd6 {[%clk
0:00:20.3]} 25. Ne3 {[%clk 0:00:18.3]} 25... Qb3 {[%clk 0:00:19.7]} 26. a5
{[%clk 0:00:17.8]} 26... e4+ {[%clk 0:00:18.5]} 27. g3 {[%clk 0:00:17.6]} 27...
Qxc3 {[%clk 0:00:18.2]} 28. Rb1 {[%clk 0:00:17.6]} 28... Rab8 {[%clk 0:00:17.9]}
29. Qxa6 {[%clk 0:00:16.1]} 29... Rxb4 {[%clk 0:00:16.3]} 30. Rd1 {[%clk
0:00:16.4]} 30... Rd4 {[%clk 0:00:16.1]} 31. Rf1 {[%clk 0:00:13.9]} 31... Rd2
{[%clk 0:00:15.8]} 32. Qb5 {[%clk 0:00:13.6]} 32... Rf8 {[%clk 0:00:14.2]} 33.
Ng2 {[%clk 0:00:10.3]} 33... Rxf2 {[%clk 0:00:12.5]} 34. Rxf2 {[%clk 0:00:09.2]}
34... Bxg3+ {[%clk 0:00:12.4]} 35. Kg1 {[%clk 0:00:09]} 35... Bxf2+ {[%clk
0:00:12]} 36. Kxf2 {[%clk 0:00:09.9]} 36... Qf3+ {[%clk 0:00:12.1]} 37. Kg1
{[%clk 0:00:10.2]} 37... e3 {[%clk 0:00:11.2]} 38. a6 {[%clk 0:00:09.1]} 38...
Qf2+ {[%clk 0:00:10.8]} 39. Kh2 {[%clk 0:00:08.6]} 39... e2 {[%clk 0:00:09.9]}
40. Qe5 {[%clk 0:00:08]} 40... c5 {[%clk 0:00:06.9]} 41. a7 {[%clk 0:00:08.1]}
41... c4 {[%clk 0:00:06.6]} 42. Qe4 {[%clk 0:00:08.6]} 42... c3 {[%clk
0:00:05.1]} 43. a8=Q {[%clk 0:00:08.5]} 43... e1=Q {[%clk 0:00:03.6]} 44. Qxf8+
{[%clk 0:00:06.5]} 44... Kxf8 {[%clk 0:00:03.7]} 45. Qxe1 {[%clk 0:00:07.2]}
45... Qxe1 {[%clk 0:00:03.2]} 46. Nxe1 {[%clk 0:00:08.1]} 46... Ke7 {[%clk
0:00:03.5]} 47. Nc2 {[%clk 0:00:08.5]} 47... Ke6 {[%clk 0:00:03.8]} 48. Kg3
{[%clk 0:00:09.4]} 48... Ke5 {[%clk 0:00:04.3]} 49. Kf3 {[%clk 0:00:10]} 49...
f5 {[%clk 0:00:04.7]} 50. Ke3 {[%clk 0:00:09.8]} 50... g5 {[%clk 0:00:04.9]} 51.
Kd3 {[%clk 0:00:09.9]} 51... h5 {[%clk 0:00:03.7]} 52. Ne1 {[%clk 0:00:09.2]}
52... h4 {[%clk 0:00:04.1]} 53. Ke3 {[%clk 0:00:08.7]} 53... g4 {[%clk
0:00:03.6]} 54. Nd3+ {[%clk 0:00:07.9]} 54... Kf6 {[%clk 0:00:01.8]} 55. Nf4
{[%clk 0:00:08.3]} 1-0

[Event "Late-Titled-Tuesday-Blitz-March-12-2024"]
[Site "Chess.com"]
[Date "2024.03.12"]
[Round "2"]
[White "N4700000"]
[Black "jinxy2009"]
[Result "1-0"]
[WhiteElo "2498"]
[BlackElo "2202"]
[TimeControl "180+1"]
[EndTime "14:18:03 PDT"]
[Termination "N4700000 won by resignation"]

1. e4 {[%clk 0:02:58.8]} 1... c5 {[%clk 0:02:59.1]} 2. a3 {[%clk 0:02:57.6]}
2... g6 {[%clk 0:02:54]} 3. h4 {[%clk 0:02:55.6]} 3... Bg7 {[%clk 0:02:48.5]} 4.
h5 {[%clk 0:02:54]} 4... Nc6 {[%clk 0:02:46.9]} 5. Nc3 {[%clk 0:02:52]} 5... e6
{[%clk 0:02:39.7]} 6. Bc4 {[%clk 0:02:30.9]} 6... Nge7 {[%clk 0:01:54.5]} 7. d3
{[%clk 0:02:29.2]} 7... d5 {[%clk 0:01:53.9]} 8. Ba2 {[%clk 0:02:28.8]} 8... b6
{[%clk 0:01:15.3]} 9. Nf3 {[%clk 0:02:20.3]} 9... Bb7 {[%clk 0:01:14.9]} 10. Qe2
{[%clk 0:02:15.9]} 10... d4 {[%clk 0:01:09.1]} 11. Nd1 {[%clk 0:02:09.3]} 11...
Qd7 {[%clk 0:01:07.2]} 12. h6 {[%clk 0:01:58.6]} 12... Bf8 {[%clk 0:01:01.3]}
13. Bg5 {[%clk 0:01:58.8]} 13... O-O-O {[%clk 0:00:48.8]} 14. Bf6 {[%clk
0:01:57.1]} 14... Rg8 {[%clk 0:00:48.4]} 15. Ng5 {[%clk 0:01:57]} 15... Re8
{[%clk 0:00:10]} 16. f4 {[%clk 0:01:48.7]} 16... Nd5 {[%clk 0:00:09.2]} 17. Bxd5
{[%clk 0:01:36.9]} 17... exd5 {[%clk 0:00:08.5]} 18. e5 {[%clk 0:01:37.4]} 18...
Be7 {[%clk 0:00:07.5]} 19. Nxh7 {[%clk 0:01:36.8]} 19... Qe6 {[%clk 0:00:04.3]}
20. Bxe7 {[%clk 0:01:32.3]} 20... Rxe7 {[%clk 0:00:02.9]} 21. Ng5 {[%clk
0:01:30.2]} 21... Qf5 {[%clk 0:00:02.7]} 22. h7 {[%clk 0:01:18.5]} 22... Rh8
{[%clk 0:00:02.9]} 23. O-O {[%clk 0:01:03.3]} 23... Qd7 {[%clk 0:00:02.3]} 24.
Qf3 {[%clk 0:00:59.2]} 24... f5 {[%clk 0:00:02.5]} 25. exf6 {[%clk 0:00:58.7]}
25... Ree8 {[%clk 0:00:02.1]} 26. f7 {[%clk 0:00:57.7]} 26... Ref8 {[%clk
0:00:01.7]} 27. Nf2 {[%clk 0:00:56.8]} 27... Nd8 {[%clk 0:00:02.4]} 28. Qg4
{[%clk 0:00:56]} 28... Nxf7 {[%clk 0:00:02.7]} 29. Qxd7+ {[%clk 0:00:49.3]}
29... Kxd7 {[%clk 0:00:03.6]} 30. Ng4 {[%clk 0:00:49]} 30... Nxg5 {[%clk
0:00:02.8]} 31. fxg5 {[%clk 0:00:49.9]} 31... Rxf1+ {[%clk 0:00:03.1]} 32. Rxf1
{[%clk 0:00:50.7]} 32... Ke6 {[%clk 0:00:03.4]} 33. Nf6 {[%clk 0:00:41.4]} 33...
Bc6 {[%clk 0:00:02.6]} 34. g4 {[%clk 0:00:30.5]} 34... c4 {[%clk 0:00:02.9]} 35.
Kg2 {[%clk 0:00:26.9]} 35... cxd3 {[%clk 0:00:02.8]} 36. cxd3 {[%clk 0:00:27.8]}
36... Bb5 {[%clk 0:00:03.3]} 37. Rf3 {[%clk 0:00:23.7]} 37... Kf7 {[%clk
0:00:02.3]} 38. Nxd5+ {[%clk 0:00:22]} 38... Kg7 {[%clk 0:00:02.8]} 39. Nf6
{[%clk 0:00:21.7]} 39... Bc6 {[%clk 0:00:03.2]} 40. Kg3 {[%clk 0:00:18.7]} 40...
Bxf3 {[%clk 0:00:02.4]} 41. Kxf3 {[%clk 0:00:19.6]} 41... Rc8 {[%clk 0:00:01.6]}
42. Ke4 {[%clk 0:00:19.2]} 42... Rc2 {[%clk 0:00:01.6]} 43. b4 {[%clk
0:00:19.3]} 43... Ra2 {[%clk 0:00:01.6]} 44. Kxd4 {[%clk 0:00:18.8]} 44... Rxa3
{[%clk 0:00:02.3]} 45. Kc4 {[%clk 0:00:18.9]} 45... Ra4 {[%clk 0:00:02.7]} 46.
Kb5 {[%clk 0:00:17.8]} 46... Ra3 {[%clk 0:00:02]} 47. d4 {[%clk 0:00:17.9]}
47... Rd3 {[%clk 0:00:02.5]} 48. Kc4 {[%clk 0:00:17.9]} 48... Rg3 {[%clk
0:00:02.6]} 49. d5 {[%clk 0:00:17.8]} 49... a5 {[%clk 0:00:03]} 50. bxa5 {[%clk
0:00:17.5]} 50... bxa5 {[%clk 0:00:03.9]} 51. Kb5 {[%clk 0:00:17.9]} 51... Rd3
{[%clk 0:00:03.7]} 52. Kxa5 {[%clk 0:00:17.8]} 52... Rxd5+ {[%clk 0:00:04]} 53.
Nxd5 {[%clk 0:00:17.2]} 53... Kxh7 {[%clk 0:00:04.9]} 54. Nf4 {[%clk 0:00:17]}
54... Kg7 {[%clk 0:00:05]} 55. Kb5 {[%clk 0:00:17.3]} 55... Kf7 {[%clk
0:00:05.5]} 56. Kc5 {[%clk 0:00:17.7]} 56... Kg7 {[%clk 0:00:06.4]} 57. Kd6
{[%clk 0:00:18]} 57... Kf7 {[%clk 0:00:07.3]} 58. Ke5 {[%clk 0:00:18.1]} 58...
Kg7 {[%clk 0:00:08.2]} 59. Ke6 {[%clk 0:00:18.4]} 59... Kg8 {[%clk 0:00:08.4]}
60. Kf6 {[%clk 0:00:18.3]} 60... Kh7 {[%clk 0:00:08.8]} 61. Nxg6 {[%clk
0:00:18.2]} 61... Kg8 {[%clk 0:00:09.7]} 62. Ne7+ {[%clk 0:00:18.1]} 62... Kh7
{[%clk 0:00:10.6]} 63. g6+ {[%clk 0:00:17.9]} 63... Kh6 {[%clk 0:00:11]} 64. g7
{[%clk 0:00:16.5]} 1-0

[Event "Late-Titled-Tuesday-Blitz-March-12-2024"]
[Site "Chess.com"]
[Date "2024.03.12"]
[Round "2"]
[White "santosalberto1987"]
[Black "scrambleyourbrain"]
[Result "0-1"]
[WhiteElo "2555"]
[BlackElo "2396"]
[TimeControl "180+1"]
[EndTime "14:18:12 PDT"]
[Termination "scrambleyourbrain won by resignation"]

1. e4 {[%clk 0:03:00.9]} 1... e5 {[%clk 0:02:59.9]} 2. Nf3 {[%clk 0:03:00]} 2...
Nc6 {[%clk 0:03:00.4]} 3. Bc4 {[%clk 0:02:55.6]} 3... Bc5 {[%clk 0:02:59.9]} 4.
O-O {[%clk 0:02:55.4]} 4... Nf6 {[%clk 0:02:59.5]} 5. d4 {[%clk 0:02:55.5]} 5...
exd4 {[%clk 0:02:54.3]} 6. e5 {[%clk 0:02:55.4]} 6... d5 {[%clk 0:02:48]} 7.
exf6 {[%clk 0:02:55.5]} 7... dxc4 {[%clk 0:02:48.1]} 8. fxg7 {[%clk 0:02:56.4]}
8... Rg8 {[%clk 0:02:48.2]} 9. Re1+ {[%clk 0:02:52.6]} 9... Be6 {[%clk
0:02:47.8]} 10. Nbd2 {[%clk 0:02:49.2]} 10... Qd5 {[%clk 0:02:38.9]} 11. Ne4
{[%clk 0:02:47.7]} 11... Be7 {[%clk 0:02:32.6]} 12. Bg5 {[%clk 0:02:41.5]} 12...
Bxg5 {[%clk 0:02:26.2]} 13. Nfxg5 {[%clk 0:02:41.3]} 13... O-O-O {[%clk
0:02:23.4]} 14. Nxe6 {[%clk 0:02:39.7]} 14... Qxe6 {[%clk 0:02:21]} 15. Ng3
{[%clk 0:02:24.9]} 15... Qg6 {[%clk 0:02:18.5]} 16. Nh5 {[%clk 0:02:21.9]} 16...
Rd5 {[%clk 0:02:04.8]} 17. Nf4 {[%clk 0:02:21.7]} 17... Qxg7 {[%clk 0:02:05.1]}
18. Qf3 {[%clk 0:02:12.5]} 18... Rd6 {[%clk 0:01:58.9]} 19. g3 {[%clk 0:02:09]}
19... Kb8 {[%clk 0:01:56.5]} 20. Re4 {[%clk 0:02:04.5]} 20... Ne5 {[%clk
0:01:47.7]} 21. Qh5 {[%clk 0:02:00.5]} 21... Ng6 {[%clk 0:01:44.9]} 22. Rae1
{[%clk 0:01:55.5]} 22... a6 {[%clk 0:01:40.7]} 23. Re8+ {[%clk 0:01:49.2]} 23...
Rd8 {[%clk 0:01:36.2]} 24. Rxd8+ {[%clk 0:01:46.4]} 24... Rxd8 {[%clk
0:01:37.1]} 25. Qg5 {[%clk 0:01:46.6]} 25... Qf8 {[%clk 0:01:12.2]} 26. Nh5
{[%clk 0:01:40.3]} 26... d3 {[%clk 0:01:04.3]} 27. cxd3 {[%clk 0:01:40]} 27...
cxd3 {[%clk 0:01:04.6]} 28. Nf6 {[%clk 0:01:35.1]} 28... Qd6 {[%clk 0:00:57.7]}
29. Rd1 {[%clk 0:01:22.8]} 29... Ne5 {[%clk 0:00:53.6]} 30. Qf4 {[%clk
0:01:18.5]} 30... Ka8 {[%clk 0:00:28.5]} 31. Nxh7 {[%clk 0:01:13.4]} 31... Qd5
{[%clk 0:00:27.3]} 32. Nf6 {[%clk 0:01:02.7]} 32... Nf3+ {[%clk 0:00:25]} 33.
Kh1 {[%clk 0:01:00.7]} 33... Qc6 {[%clk 0:00:19.5]} 34. Ne4 {[%clk 0:00:58.3]}
34... Nd4 {[%clk 0:00:19.7]} 35. Rxd3 {[%clk 0:00:38]} 35... f5 {[%clk
0:00:19.2]} 36. f3 {[%clk 0:00:17.5]} 36... fxe4 {[%clk 0:00:16.1]} 37. fxe4
{[%clk 0:00:17.9]} 37... Qc4 {[%clk 0:00:12]} 38. Qd2 {[%clk 0:00:17.2]} 38...
c5 {[%clk 0:00:09.8]} 39. Kg2 {[%clk 0:00:17.3]} 39... Qe6 {[%clk 0:00:10]} 40.
Qe3 {[%clk 0:00:16.6]} 40... Re8 {[%clk 0:00:10.4]} 41. Qf4 {[%clk 0:00:14.3]}
41... Qxa2 {[%clk 0:00:08.6]} 42. Rd2 {[%clk 0:00:11.2]} 42... Qe6 {[%clk
0:00:08.7]} 43. b4 {[%clk 0:00:09.6]} 43... Qxe4+ {[%clk 0:00:04.8]} 44. Qxe4
{[%clk 0:00:09.9]} 44... Rxe4 {[%clk 0:00:05.7]} 45. bxc5 {[%clk 0:00:10.8]}
45... Re2+ {[%clk 0:00:06]} 46. Rxe2 {[%clk 0:00:11.1]} 46... Nxe2 {[%clk
0:00:06.9]} 47. h4 {[%clk 0:00:11.6]} 47... Nd4 {[%clk 0:00:07]} 48. h5 {[%clk
0:00:11.6]} 48... Ne6 {[%clk 0:00:07.6]} 49. g4 {[%clk 0:00:11]} 49... Ng5
{[%clk 0:00:07.8]} 50. Kg3 {[%clk 0:00:10.9]} 50... a5 {[%clk 0:00:08.4]} 51.
Kf4 {[%clk 0:00:11]} 51... Nh7 {[%clk 0:00:07.3]} 52. g5 {[%clk 0:00:11.2]}
52... a4 {[%clk 0:00:07.8]} 53. g6 {[%clk 0:00:11.6]} 53... Nf6 {[%clk
0:00:04.3]} 54. Kg5 {[%clk 0:00:09]} 54... a3 {[%clk 0:00:04.6]} 55. Kxf6 {[%clk
0:00:08.3]} 55... a2 {[%clk 0:00:05.1]} 56. g7 {[%clk 0:00:09.2]} 56... a1=Q+
{[%clk 0:00:05.4]} 57. Kf7 {[%clk 0:00:09.5]} 57... Qa2+ {[%clk 0:00:06]} 58.
Kf8 {[%clk 0:00:09.5]} 58... Qf2+ {[%clk 0:00:05.7]} 59. Ke8 {[%clk 0:00:09.6]}
59... Qe3+ {[%clk 0:00:05.8]} 60. Kf8 {[%clk 0:00:09.8]} 60... Qxc5+ {[%clk
0:00:06]} 61. Kf7 {[%clk 0:00:09.8]} 61... Qxh5+ {[%clk 0:00:06.1]} 62. Kf8
{[%clk 0:00:09.6]} 62... Qh6 {[%clk 0:00:06.1]} 0-1

[Event "Late-Titled-Tuesday-Blitz-March-12-2024"]
[Site "Chess.com"]
[Date "2024.03.12"]
[Round "2"]
[White "IlyaGrigorjev"]
[Black "ncofre98"]
[Result "1-0"]
[WhiteElo "2927"]
[BlackElo "2613"]
[TimeControl "180+1"]
[EndTime "14:18:13 PDT"]
[Termination "IlyaGrigorjev won by checkmate"]

1. e4 {[%clk 0:03:00.9]} 1... c5 {[%clk 0:02:58.7]} 2. Nf3 {[%clk 0:03:00.9]}
2... d6 {[%clk 0:02:54.7]} 3. d4 {[%clk 0:03:00.9]} 3... cxd4 {[%clk 0:02:54.8]}
4. Nxd4 {[%clk 0:03:01.8]} 4... Nf6 {[%clk 0:02:54.1]} 5. Nc3 {[%clk 0:03:02.2]}
5... g6 {[%clk 0:02:54.4]} 6. Be3 {[%clk 0:03:01.5]} 6... Bg7 {[%clk 0:02:54.2]}
7. f3 {[%clk 0:03:02.2]} 7... O-O {[%clk 0:02:54.6]} 8. Qd2 {[%clk 0:03:02.9]}
8... Nc6 {[%clk 0:02:54.2]} 9. O-O-O {[%clk 0:03:03.5]} 9... d5 {[%clk
0:02:54.3]} 10. Kb1 {[%clk 0:03:04]} 10... Nxd4 {[%clk 0:02:53.1]} 11. e5 {[%clk
0:03:04.3]} 11... Nf5 {[%clk 0:02:53.2]} 12. exf6 {[%clk 0:03:04.8]} 12... exf6
{[%clk 0:02:53.8]} 13. Nxd5 {[%clk 0:03:03.6]} 13... Nxe3 {[%clk 0:02:53.4]} 14.
Qxe3 {[%clk 0:03:04.5]} 14... Be6 {[%clk 0:02:48.9]} 15. Bc4 {[%clk 0:03:05]}
15... f5 {[%clk 0:02:43.8]} 16. c3 {[%clk 0:02:56.3]} 16... Qh4 {[%clk
0:02:32.6]} 17. Bb3 {[%clk 0:02:52.4]} 17... Rfe8 {[%clk 0:02:28]} 18. Nc7
{[%clk 0:02:35.6]} 18... Bxb3 {[%clk 0:02:15.2]} 19. Nxe8 {[%clk 0:02:35.8]}
19... Bxd1 {[%clk 0:02:10.7]} 20. Rxd1 {[%clk 0:02:36.7]} 20... Qa4 {[%clk
0:01:59.1]} 21. Re1 {[%clk 0:02:37.1]} 21... Bh8 {[%clk 0:01:45]} 22. Qe7 {[%clk
0:02:32.8]} 22... Qc6 {[%clk 0:01:34.1]} 23. Nd6 {[%clk 0:02:11]} 23... Rf8
{[%clk 0:01:32.4]} 24. g4 {[%clk 0:01:19.3]} 24... Qxf3 {[%clk 0:01:00.2]} 25.
gxf5 {[%clk 0:01:02.7]} 25... b5 {[%clk 0:00:58]} 26. fxg6 {[%clk 0:00:49.6]}
26... hxg6 {[%clk 0:00:56.2]} 27. a3 {[%clk 0:00:36.6]} 27... a5 {[%clk
0:00:49.8]} 28. Qe4 {[%clk 0:00:31.7]} 28... Qf2 {[%clk 0:00:32.7]} 29. Nxb5
{[%clk 0:00:22.7]} 29... Qxh2 {[%clk 0:00:28]} 30. a4 {[%clk 0:00:21.9]} 30...
Bf6 {[%clk 0:00:19.9]} 31. Rf1 {[%clk 0:00:20.9]} 31... Bg7 {[%clk 0:00:15.7]}
32. Rh1 {[%clk 0:00:17.6]} 32... Qg3 {[%clk 0:00:14.4]} 33. Ka2 {[%clk 0:00:17]}
33... Qg5 {[%clk 0:00:13.6]} 34. Nd6 {[%clk 0:00:11.9]} 34... Qf6 {[%clk
0:00:12.3]} 35. Nc4 {[%clk 0:00:07]} 35... Qd8 {[%clk 0:00:07.9]} 36. Qh4 {[%clk
0:00:03.2]} 36... Qxh4 {[%clk 0:00:05.9]} 37. Rxh4 {[%clk 0:00:04.1]} 37... f5
{[%clk 0:00:05.9]} 38. Nxa5 {[%clk 0:00:02.6]} 38... f4 {[%clk 0:00:04.1]} 39.
Nc4 {[%clk 0:00:01.9]} 39... f3 {[%clk 0:00:04.4]} 40. Nd2 {[%clk 0:00:02.3]}
40... f2 {[%clk 0:00:04.3]} 41. Rh1 {[%clk 0:00:02.8]} 41... Bf6 {[%clk
0:00:02.3]} 42. a5 {[%clk 0:00:02.9]} 42... Bg5 {[%clk 0:00:02.8]} 43. Nf1
{[%clk 0:00:02.8]} 43... Rf5 {[%clk 0:00:02.6]} 44. b4 {[%clk 0:00:03.3]} 44...
Be7 {[%clk 0:00:01.9]} 45. Kb3 {[%clk 0:00:03.8]} 45... Bd8 {[%clk 0:00:02.5]}
46. c4 {[%clk 0:00:03.9]} 46... Bxa5 {[%clk 0:00:02.8]} 47. bxa5 {[%clk
0:00:04.2]} 47... Rxa5 {[%clk 0:00:03.4]} 48. Rh2 {[%clk 0:00:04.2]} 48... Rf5
{[%clk 0:00:03.3]} 49. Kb4 {[%clk 0:00:04.2]} 49... Kf7 {[%clk 0:00:03.9]} 50.
c5 {[%clk 0:00:04.3]} 50... Ke7 {[%clk 0:00:04.6]} 51. Kb5 {[%clk 0:00:04.9]}
51... Kd8 {[%clk 0:00:05.1]} 52. Kb6 {[%clk 0:00:05.6]} 52... Kc8 {[%clk
0:00:05.4]} 53. c6 {[%clk 0:00:05.8]} 53... Rf8 {[%clk 0:00:05.9]} 54. Rg2
{[%clk 0:00:04.9]} 54... Rf6 {[%clk 0:00:05.4]} 55. Rg5 {[%clk 0:00:04.5]} 55...
Kb8 {[%clk 0:00:04.9]} 56. Ra5 {[%clk 0:00:04.7]} 56... Re6 {[%clk 0:00:03.9]}
57. Rd5 {[%clk 0:00:05.1]} 57... Re8 {[%clk 0:00:03.8]} 58. Rd6 {[%clk
0:00:04.8]} 58... Rf8 {[%clk 0:00:02.6]} 59. Rxg6 {[%clk 0:00:05.1]} 59... Kc8
{[%clk 0:00:02.9]} 60. Rg7 {[%clk 0:00:05.7]} 60... Kb8 {[%clk 0:00:03.1]} 61.
Rb7+ {[%clk 0:00:06]} 61... Kc8 {[%clk 0:00:03.2]} 62. Ra7 {[%clk 0:00:06.8]}
62... Rd8 {[%clk 0:00:03.5]} 63. Ra8# {[%clk 0:00:07.1]} 1-0